fUST/lending_fUST_20250701
["ID","MTS","AMOUNT","RATE_DAILY","PERIOD"]
[368760829,1751350262771,-1423.06,0.00020239,2]
[368760830,1751350262781,-460.0,0.0002024,2]
[368760831,1751350262790,-460.0,0.0002024,2]
[368760832,1751350262800,-460.0,0.0002024,2]
[368760833,1751350262809,-151.0,0.0002024,2]
[368760834,1751350262819,-151.0,0.0002024,2]
[368760835,1751350262828,-151.0,0.0002024,2]
[368760836,1751350262837,-460.0,0.0002024,2]
[368760837,1751350262847,-320.93,0.0002024,2]
[368760838,1751350262857,-542.55,0.0002024,2]
[368760839,1751350262866,-471.89,0.0002024,2]
[368760840,1751350262876,-460.0,0.0002024,2]
[368760841,1751350262885,-444.06,0.0002024,2]
[368760842,1751350262895,-162.922895,0.0002024,2]
[368760843,1751350262905,-460.0,0.0002024,2]
[368760844,1751350262914,-162.922895,0.0002024,2]
[368760845,1751350262923,-460.0,0.0002024,2]
[368760846,1751350262934,-460.0,0.0002024,2]
[368760847,1751350262944,-460.0,0.0002024,2]
[368760848,1751350262954,-589.63,0.0002024,2]
[368760849,1751350262964,-460.0,0.0002024,2]
[368760850,1751350262973,-460.0,0.0002024,2]
[368760851,1751350262983,-460.0,0.0002024,2]
[368760852,1751350262993,-460.0,0.0002024,2]
[368760853,1751350263003,-460.0,0.0002024,2]
[368760854,1751350263013,-161.78093,0.0002024,2]
[368760855,1751350263023,-2353.14,0.0002024,2]
[368760856,1751350263033,-566.56,0.0002024,2]
[368760857,1751350263043,-460.0,0.0002024,2]
[368760858,1751350263053,-394.2,0.0002024,2]
[368760859,1751350263062,-245.88,0.0002024,2]
[368760860,1751350263072,-719.93,0.0002024,2]
[368760861,1751350263082,-151.0,0.0002024,2]
[368760862,1751350263092,-460.0,0.0002024,2]
[368760863,1751350263102,-460.0,0.0002024,2]
[368760864,1751350263113,-417.56,0.0002024,2]
[368760865,1751350263122,-460.0,0.0002024,2]
[368760866,1751350263132,-190.68,0.00020241,2]
[368760867,1751350263143,-460.0,0.00020241,2]
[368760868,1751350263154,-460.0,0.00020241,2]
[368760869,1751350263250,-460.0,0.00020241,2]
[368760870,1751350263261,-460.0,0.00020241,2]
[368760871,1751350263272,-1073.63,0.00020241,2]
[368760872,1751350263282,-176.06,0.00020241,2]
[368760873,1751350263293,-460.0,0.00020241,2]
[368760874,1751350263303,-766.82,0.00020241,2]
[368760875,1751350263313,-1052.59,0.00020241,2]
[368760876,1751350263323,-460.0,0.00020241,2]
[368760877,1751350263333,-749.61,0.00020241,2]
[368760878,1751350263344,-1013.9,0.00020241,2]
[368760879,1751350263355,-460.0,0.00020241,2]
[368760880,1751350263366,-464.68,0.00020241,2]
[368760881,1751350263377,-408.64,0.00020241,2]
[368760882,1751350263390,-1741.55,0.00020241,2]
[368760883,1751350263401,-460.0,0.00020243,2]
[368760884,1751350263411,-151.0,0.00020243,2]
[368760885,1751350263421,-151.0,0.00020243,2]
[368760886,1751350263431,-541.259,0.00020244,2]
[368760887,1751350263442,-1000.0,0.00020283,2]
[368760888,1751350263453,-168.0,0.00020298,2]
[368760889,1751350263464,-151.0,0.00020363,2]
[368760890,1751350263475,-152.709196,0.00020363,2]
[368760891,1751350263484,-2151.0,0.00020423,2]
[368760892,1751350263494,-646.0,0.00020423,2]
[368760893,1751350263504,-1084.21,0.00020512,2]
[368760894,1751350263514,-460.0,0.00020512,2]
[368760895,1751350263528,-558.79,0.00020513,2]
[368760896,1751350263539,-929.88,0.00020513,2]
[368760897,1751350263550,-1552.72,0.00020513,2]
[368760898,1751350263563,-460.0,0.00020513,2]
[368760899,1751350263573,-407.19,0.00020513,2]
[368760900,1751350263583,-460.0,0.00020513,2]
[368760901,1751350263594,-1294.9,0.00020513,2]
[368760902,1751350263605,-1730.43,0.00020513,2]
[368760903,1751350263614,-1572.34,0.00020513,2]
[368760904,1751350263624,-868.02,0.00020513,2]
[368760905,1751350263633,-460.0,0.00020513,2]
[368760906,1751350263643,-460.0,0.00020513,2]
[368760907,1751350263653,-1423.06,0.00020513,2]
[368760908,1751350263662,-373.72,0.00020514,2]
[368760909,1751350263672,-338.48,0.00020514,2]
[368760910,1751350263681,-460.0,0.00020514,2]
[368760911,1751350263691,-542.55,0.00020514,2]
[368760912,1751350263700,-460.0,0.00020514,2]
[368760913,1751350263710,-460.0,0.00020514,2]
[368760914,1751350263719,-460.0,0.00020514,2]
[368760915,1751350263730,-460.0,0.00020514,2]
[368760916,1751350263740,-460.0,0.00020514,2]
[368760917,1751350263749,-589.63,0.00020514,2]
[368760918,1751350263759,-460.0,0.00020514,2]
[368760919,1751350263769,-460.0,0.00020514,2]
[368760920,1751350263779,-460.0,0.00020514,2]
[368760921,1751350263789,-460.0,0.00020514,2]
[368760922,1751350263799,-460.0,0.00020514,2]
[368760923,1751350263809,-2353.14,0.00020514,2]
[368760924,1751350263818,-460.0,0.00020514,2]
[368760925,1751350263828,-719.93,0.00020514,2]
[368760926,1751350263838,-460.0,0.00020514,2]
[368760927,1751350263848,-460.0,0.00020514,2]
[368760928,1751350263858,-460.0,0.00020514,2]
[368760929,1751350263868,-460.0,0.00020515,2]
[368760930,1751350263878,-185.44,0.00020515,2]
[368760931,1751350263888,-460.0,0.00020515,2]
[368760932,1751350263897,-460.0,0.00020515,2]
[368760933,1751350263908,-1073.63,0.00020515,2]
[368760934,1751350263918,-460.0,0.00020515,2]
[368760935,1751350263927,-766.82,0.00020515,2]
[368760936,1751350263937,-1052.59,0.00020515,2]
[368760937,1751350263947,-460.0,0.00020515,2]
[368760938,1751350263957,-749.61,0.00020515,2]
[368760939,1751350263968,-1013.9,0.00020515,2]
[368760940,1751350263978,-460.0,0.00020515,2]
[368760941,1751350263987,-1741.55,0.00020515,2]
[368760942,1751350263997,-151.0,0.00020516,2]
[368760943,1751350264007,-151.0,0.00020516,2]
[368760944,1751350264016,-256.208505,0.00020516,2]
[368760945,1751350264026,-489.100513,0.00020516,2]
[368760946,1751350264035,-460.0,0.00020517,2]
[368760947,1751350264045,-2546.75,0.000206,2]
[368760948,1751350264055,-215.0738,0.00020659,2]
[368760949,1751350264064,-169.0,0.00020775,2]
[368760950,1751350264074,-1084.21,0.00020786,2]
[368760951,1751350264083,-460.0,0.00020786,2]
[368760952,1751350264093,-558.79,0.00020787,2]
[368760953,1751350264103,-929.88,0.00020787,2]
[368760954,1751350264113,-1552.72,0.00020787,2]
[368760955,1751350264123,-460.0,0.00020787,2]
[368760956,1751350264132,-460.0,0.00020787,2]
[368760957,1751350264143,-1294.9,0.00020787,2]
[368760958,1751350264152,-1730.43,0.00020787,2]
[368760959,1751350264162,-1572.34,0.00020787,2]
[368760960,1751350264172,-868.02,0.00020787,2]
[368760961,1751350264181,-460.0,0.00020787,2]
[368760962,1751350264191,-460.0,0.00020787,2]
[368760963,1751350264201,-1423.06,0.00020787,2]
[368760964,1751350264210,-9424.09136185,0.00020788,2]
[368760965,1751350264343,-15355.7963663,0.00020788,2]
[368760966,1751350264353,-35041.853129,0.00020788,2]
[368760967,1751350264364,-151.0,0.00020788,2]
[368760968,1751350264374,-238.53192,0.00020788,2]
[368760969,1751350264384,-151.0,0.00020788,2]
[368760970,1751350264479,-151.0,0.00020788,2]
[368760971,1751350264490,-165.031232,0.00020788,2]
[368760972,1751350264500,-165.031232,0.00020788,2]
[368760973,1751350264510,-460.0,0.00020788,2]
[368760974,1751350264524,-542.55,0.00020788,2]
[368760975,1751350264536,-460.0,0.00020788,2]
[368760976,1751350264546,-460.0,0.00020788,2]
[368760977,1751350264556,-460.0,0.00020788,2]
[368760978,1751350264567,-418.53567687,0.00020788,2]
[368760979,1751350264576,-460.0,0.00020788,2]
[368760980,1751350264586,-589.63,0.00020788,2]
[368760981,1751350264596,-384.69,0.00020788,2]
[368760982,1751350264606,-460.0,0.00020788,2]
[368760983,1751350264615,-544.5,0.00020788,2]
[368760984,1751350264625,-376.64642298,0.00020788,2]
[368760985,1751350264720,-460.0,0.00018048,2]
[368760986,1751350264730,-71.640718,0.0001805,2]
[368760987,1751350264741,-388.359282,0.0001805,2]
[368760988,1751350264751,-460.0,0.00018324,2]
[368760989,1751350264761,-83.35357702,0.00020788,2]
[368760990,1751350264771,-460.0,0.00020788,2]
[368760991,1751350264781,-741.48305536,0.00020788,2]
[368760992,1751350264792,-1611.65694464,0.00020788,2]
[368760993,1751350264803,-460.0,0.00020788,2]
[368760994,1751350264812,-719.93,0.00020788,2]
[368760995,1751350264822,-460.0,0.00020788,2]
[368760996,1751350264831,-452.32,0.00020788,2]
[368760997,1751350264841,-206.36,0.00020788,2]
[368760998,1751350264851,-460.0,0.00020789,2]
[368760999,1751350264860,-460.0,0.00020789,2]
[368761000,1751350264870,-173.74,0.00020789,2]
[368761001,1751350264879,-548.659949,0.00020789,2]
[368761002,1751350265013,-0.00544521,0.00020789,2]
[368761003,1751350265024,-524.96460579,0.00020789,2]
[368761004,1751350265034,-460.0,0.00020789,2]
[368761005,1751350265044,-227.9812098,0.00020789,2]
[368761006,1751350265159,192.10227889,0.00017947,2]
[368761007,1751350265271,-460.0,0.00018046,2]
[368761008,1751350265281,-460.0,0.00018048,2]
[368761009,1751350265290,-460.0,0.00018049,2]
[368761010,1751350265300,-460.0,0.0001832,2]
[368761011,1751350265310,-259.19861445,0.00018322,2]
[368761012,1751350265319,-460.0,0.00018323,2]
[368761013,1751350265329,-460.0,0.00018597,2]
[368761014,1751350265339,-276.81,0.00018871,2]
[368761015,1751350265349,-151.0,0.00018872,2]
[368761016,1751350265359,-160.0,0.00018927,2]
[368761017,1751350265368,-460.0,0.00019966,2]
[368761018,1751350265378,-460.0,0.0002024,2]
[368761019,1751350265388,-427.56,0.00020514,2]
[368761020,1751350265399,-538.8387902,0.00020789,2]
[368761021,1751350265410,-1052.59,0.00020789,2]
[368761022,1751350265419,-460.0,0.00020789,2]
[368761023,1751350265430,-749.61,0.00020789,2]
[368761024,1751350265442,-1013.9,0.00020789,2]
[368761025,1751350265452,-460.0,0.00020789,2]
[368761026,1751350265462,-1741.55,0.00020789,2]
[368761027,1751350265471,-421.33760413,0.00020791,2]
[368761028,1751350265647,-460.0,0.00018047,2]
[368761029,1751350265657,-460.0,0.00018048,2]
[368761030,1751350265667,-500.0,0.00018049,2]
[368761031,1751350265677,-500.0,0.0001805,2]
[368761032,1751350265687,-261.25,0.00018322,2]
[368761033,1751350265696,-460.0,0.00018594,2]
[368761034,1751350265706,-460.0,0.00018868,2]
[368761035,1751350265715,-38.66239587,0.00020791,2]
[368761036,1751350265740,-169.0,0.00020839,2]
[368761037,1751350265752,-150.0,0.00021,2]
[368761038,1751350265763,-151.0,0.00021017,2]
[368761039,1751350265774,-151.0,0.00021017,2]
[368761040,1751350265786,-151.0,0.00021017,2]
[368761041,1751350265797,-151.0,0.00021017,2]
[368761042,1751350265808,-1084.21,0.0002106,2]
[368761043,1751350265819,-209.87,0.0002106,2]
[368761044,1751350265831,-558.79,0.00021061,2]
[368761045,1751350265842,-929.88,0.00021061,2]
[368761046,1751350265855,-410.69866854,0.00021061,2]
[368761047,1751350265871,-1142.02133146,0.00021061,2]
[368761048,1751350265882,-460.0,0.00021061,2]
[368761049,1751350265893,-460.0,0.00021061,2]
[368761050,1751350265903,-1294.9,0.00021061,2]
[368761051,1751350265915,-1730.43,0.00021061,2]
[368761052,1751350265928,-1572.34,0.00021061,2]
[368761053,1751350265939,-868.02,0.00021061,2]
[368761054,1751350265951,-460.0,0.00021061,2]
[368761055,1751350265962,-460.0,0.00021061,2]
[368761056,1751350265972,-154.597053,0.00021061,2]
[368761057,1751350265982,-1423.06,0.00021061,2]
[368761058,1751350265993,-239.82,0.00021062,2]
[368761059,1751350266003,-460.0,0.00021062,2]
[368761060,1751350266014,-460.0,0.00021062,2]
[368761061,1751350266025,-460.0,0.00021062,2]
[368761062,1751350266036,-460.0,0.00021062,2]
[368761063,1751350266047,-589.63,0.00021062,2]
[368761064,1751350266057,-460.0,0.00021062,2]
[368761065,1751350266067,-460.0,0.00021062,2]
[368761066,1751350266077,-460.0,0.00021062,2]
[368761067,1751350266088,-2353.14,0.00021062,2]
[368761068,1751350266098,-460.0,0.00021062,2]
[368761069,1751350266110,-719.93,0.00021062,2]
[368761070,1751350266119,-460.0,0.00021062,2]
[368761071,1751350266130,-460.0,0.00021063,2]
[368761072,1751350266140,-460.0,0.00021063,2]
[368761073,1751350266151,-1073.63,0.00021063,2]
[368761074,1751350266162,-460.0,0.00021063,2]
[368761075,1751350266173,-766.82,0.00021063,2]
[368761076,1751350266185,-1052.59,0.00021063,2]
[368761077,1751350266195,-460.0,0.00021063,2]
[368761078,1751350266206,-749.61,0.00021063,2]
[368761079,1751350266218,-1013.9,0.00021063,2]
[368761080,1751350266229,-460.0,0.00021063,2]
[368761081,1751350266240,-1741.55,0.00021063,2]
[368761082,1751350266251,-460.0,0.00021065,2]
[368761083,1751350266261,-160.0,0.000211,3]
[368761084,1751350266272,-151.0,0.0002112,2]
[368761085,1751350266283,-151.0,0.0002112,2]
[368761086,1751350266293,-600.0,0.0002112,2]
[368761087,1751350266303,-500.0,0.00021211,2]
[368761088,1751350266313,-501.76566482,0.00021211,2]
[368761089,1751350266324,-500.0,0.00021211,2]
[368761090,1751350266334,-521.35283505,0.00021211,2]
[368761091,1751350266350,-501.58004242,0.00021211,2]
[368761092,1751350266362,-500.31514716,0.00021211,2]
[368761093,1751350266373,-500.0,0.00021211,2]
[368761094,1751350266382,-500.0,0.00021211,2]
[368761095,1751350266392,-500.0,0.00021211,2]
[368761096,1751350266402,-600.0,0.00021211,2]
[368761097,1751350266412,-500.0,0.00021211,2]
[368761098,1751350266422,-500.0,0.00021211,2]
[368761099,1751350266434,-502.95283045,0.00021211,2]
[368761100,1751350266443,-500.0,0.00021211,2]
[368761101,1751350266454,-500.0,0.00021211,2]
[368761102,1751350266464,-501.1960739,0.00021211,2]
[368761103,1751350266475,-500.78906203,0.00021211,2]
[368761104,1751350266486,-501.93475941,0.00021211,2]
[368761105,1751350266496,-1084.21,0.00021334,2]
[368761106,1751350266506,-558.79,0.00021335,2]
[368761107,1751350266517,-929.88,0.00021335,2]
[368761108,1751350266529,-1552.72,0.00021335,2]
[368761109,1751350266539,-460.0,0.00021335,2]
[368761110,1751350266550,-264.36,0.00021335,2]
[368761111,1751350266560,-1294.9,0.00021335,2]
[368761112,1751350266571,-1730.43,0.00021335,2]
[368761113,1751350266581,-1572.34,0.00021335,2]
[368761114,1751350266591,-868.02,0.00021335,2]
[368761115,1751350266601,-460.0,0.00021335,2]
[368761116,1751350266612,-460.0,0.00021335,2]
[368761117,1751350266622,-1423.06,0.00021335,2]
[368761118,1751350266633,-151.0,0.00021336,2]
[368761119,1751350266643,-460.0,0.00021336,2]
[368761120,1751350266653,-151.0,0.00021336,2]
[368761121,1751350266663,-460.0,0.00021336,2]
[368761122,1751350266673,-558.790274,0.00021336,2]
[368761123,1751350266684,-558.790274,0.00021336,2]
[368761124,1751350266695,-460.0,0.00021336,2]
[368761125,1751350266704,-599.12,0.00021336,2]
[368761126,1751350266715,-589.63,0.00021336,2]
[368761127,1751350266724,-460.0,0.00021336,2]
[368761128,1751350266735,-460.0,0.00021336,2]
[368761129,1751350266745,-2353.14,0.00021336,2]
[368761130,1751350266755,-460.0,0.00021336,2]
[368761131,1751350266766,-719.93,0.00021336,2]
[368761132,1751350266776,-460.0,0.00021336,2]
[368761133,1751350266786,-460.0,0.00021337,2]
[368761134,1751350266796,-288.7452929,0.00021337,2]
[368761135,1751350266896,-1073.63,0.00021337,2]
[368761136,1751350266908,-460.0,0.00021337,2]
[368761137,1751350266918,-766.82,0.00021337,2]
[368761138,1751350266928,-1052.59,0.00021337,2]
[368761139,1751350266938,-155.92,0.00021337,2]
[368761140,1751350266950,-749.61,0.00021337,2]
[368761141,1751350266960,-1013.9,0.00021337,2]
[368761142,1751350266970,-460.0,0.00021337,2]
[368761143,1751350266979,-1741.55,0.00021337,2]
[368761144,1751350266989,-151.0,0.00021339,2]
[368761145,1751350266998,-460.0,0.00021339,2]
[368761146,1751350267009,-600.0,0.0002134,2]
[368761147,1751350267019,-1099.764702,0.00021448,4]
[368761148,1751350267029,-151.0,0.00021458,2]
[368761149,1751350267039,-151.0,0.00021458,2]
[368761150,1751350267048,-151.552383,0.00021458,2]
[368761151,1751350267058,-151.552383,0.00021458,2]
[368761152,1751350267067,-151.0,0.00021458,2]
[368761153,1751350267077,-500.0,0.00021472,2]
[368761154,1751350267087,-587.0,0.00021481,2]
[368761155,1751350267096,-895.58333036,0.0002156,2]
[368761156,1751350267105,-200.0,0.0002157,2]
[368761157,1751350267116,-500.0,0.0002159,2]
[368761158,1751350267125,-272.29428824,0.0002159,2]
[368761159,1751350267135,-1084.21,0.00021608,2]
[368761160,1751350267144,-558.79,0.00021609,2]
[368761161,1751350267153,-929.88,0.00021609,2]
[368761162,1751350267163,-1552.72,0.00021609,2]
[368761163,1751350267173,-460.0,0.00021609,2]
[368761164,1751350267183,-1294.9,0.00021609,2]
[368761165,1751350267193,-1730.43,0.00021609,2]
[368761166,1751350267203,-1572.34,0.00021609,2]
[368761167,1751350267213,-868.02,0.00021609,2]
[368761168,1751350267222,-460.0,0.00021609,2]
[368761169,1751350267232,-460.0,0.00021609,2]
[368761170,1751350267242,-1423.06,0.00021609,2]
[368761171,1751350267251,-460.0,0.0002161,2]
[368761172,1751350267261,-460.0,0.0002161,2]
[368761173,1751350267271,-545.06,0.0002161,2]
[368761174,1751350267280,-589.63,0.0002161,2]
[368761175,1751350267290,-460.0,0.0002161,2]
[368761176,1751350267299,-460.0,0.0002161,2]
[368761177,1751350267310,-2353.14,0.0002161,2]
[368761178,1751350267319,-460.0,0.0002161,2]
[368761179,1751350267329,-719.93,0.0002161,2]
[368761180,1751350267338,-460.0,0.0002161,2]
[368761181,1751350267348,-460.0,0.00021611,2]
[368761182,1751350267358,-151.0,0.00021611,2]
[368761183,1751350267367,-161.6972,0.00021611,2]
[368761184,1751350267377,-161.6972,0.00021611,2]
[368761185,1751350267390,-1073.63,0.00021611,2]
[368761186,1751350267415,-460.0,0.00021611,2]
[368761187,1751350267437,-766.82,0.00021611,2]
[368761188,1751350267461,-1052.59,0.00021611,2]
[368761189,1751350267483,-749.61,0.00021611,2]
[368761190,1751350267507,-1013.9,0.00021611,2]
[368761191,1751350267529,-460.0,0.00021611,2]
[368761192,1751350267549,-1741.55,0.00021611,2]
[368761193,1751350267565,-168.0,0.00021612,2]
[368761194,1751350267585,-460.0,0.00021613,2]
[368761195,1751350267610,-169.0,0.00021663,2]
[368761196,1751350267631,-307.518305,0.00021699,2]
[368761197,1751350267646,-1000.0,0.00021758,2]
[368761198,1751350267669,-1000.0,0.00021758,2]
[368761199,1751350267685,-1000.0,0.00021758,2]
[368761200,1751350267703,-1000.0,0.00021758,2]
[368761201,1751350267718,-1000.0,0.00021758,2]
[368761202,1751350267736,-1200.0,0.00021758,2]
[368761203,1751350267752,-1000.0,0.00021758,2]
[368761204,1751350267770,-1000.0,0.00021758,2]
[368761205,1751350267803,-1000.0,0.00021758,2]
[368761206,1751350267835,-1000.0,0.00021758,2]
[368761207,1751350267860,-168.0,0.00021767,2]
[368761208,1751350267882,-169.0,0.00021798,2]
[368761209,1751350267902,-490.0,0.000218,2]
[368761210,1751350267925,-490.0,0.000218,2]
[368761211,1751350267948,-490.0,0.000218,2]
[368761212,1751350267960,-490.0,0.000218,2]
[368761213,1751350267970,-490.0,0.000218,2]
[368761214,1751350267980,-490.0,0.000218,2]
[368761215,1751350267991,-490.0,0.000218,2]
[368761216,1751350268001,-490.0,0.000218,2]
[368761217,1751350268012,-490.0,0.000218,2]
[368761218,1751350268022,-490.0,0.000218,2]
[368761219,1751350268032,-490.0,0.000218,2]
[368761220,1751350268044,-490.0,0.000218,2]
[368761221,1751350268056,-490.0,0.000218,2]
[368761222,1751350268066,-490.0,0.000218,2]
[368761223,1751350268077,-490.0,0.000218,2]
[368761224,1751350268087,-237.51,0.000218,2]
[368761225,1751350268097,-151.0,0.000218,2]
[368761226,1751350268107,-268.769752,0.000218,2]
[368761227,1751350268118,-151.0,0.000218,2]
[368761228,1751350268128,-162.922895,0.000218,2]
[368761229,1751350268138,-162.922895,0.000218,2]
[368761230,1751350268148,-4489.38372868,0.0002188,2]
[368761231,1751350268159,-1084.21,0.00021882,2]
[368761232,1751350268170,-558.79,0.00021883,2]
[368761233,1751350268181,-929.88,0.00021883,2]
[368761234,1751350268193,-1552.72,0.00021883,2]
[368761235,1751350268432,-460.0,0.00021883,2]
[368761236,1751350268455,-1294.9,0.00021883,2]
[368761237,1751350268467,-1730.43,0.00021883,2]
[368761238,1751350268477,-1572.34,0.00021883,2]
[368761239,1751350268487,-868.02,0.00021883,2]
[368761240,1751350268497,-460.0,0.00021883,2]
[368761241,1751350268507,-460.0,0.00021883,2]
[368761242,1751350268518,-1423.06,0.00021883,2]
[368761243,1751350268531,-460.0,0.00021884,2]
[368761244,1751350268540,-279.07438141,0.00021884,2]
[368761245,1751350268550,-589.63,0.00021884,2]
[368761246,1751350268560,-460.0,0.00021884,2]
[368761247,1751350268570,-460.0,0.00021884,2]
[368761248,1751350268581,-2353.14,0.00021884,2]
[368761249,1751350268593,-460.0,0.00021884,2]
[368761250,1751350268603,-719.93,0.00021884,2]
[368761251,1751350268612,-460.0,0.00021884,2]
[368761252,1751350268622,-169.0,0.00021884,2]
[368761253,1751350268632,-460.0,0.00021885,2]
[368761254,1751350268641,-1073.63,0.00021885,2]
[368761255,1751350268651,-460.0,0.00021885,2]
[368761256,1751350268661,-766.82,0.00021885,2]
[368761257,1751350268670,-1052.59,0.00021885,2]
[368761258,1751350268681,-749.61,0.00021885,2]
[368761259,1751350268690,-1013.9,0.00021885,2]
[368761260,1751350268700,-460.0,0.00021885,2]
[368761261,1751350268710,-1741.55,0.00021885,2]
[368761262,1751350268719,-642.82239276,0.00021886,2]
[368761263,1751350268729,-460.0,0.00021887,2]
[368761264,1751350268739,-400.0,0.00021918,7]
[368761265,1751350268750,-150.0,0.00021918,2]
[368761266,1751350268759,-151.0,0.00021958,5]
[368761267,1751350268768,-556.47497621,0.00021973,2]
[368761268,1751350268778,-500.0,0.00021973,2]
[368761269,1751350268787,-500.0,0.00021973,2]
[368761270,1751350268796,-363.60885852,0.00021973,2]
[368761271,1751350268806,-150.0,0.00021973,2]
[368761272,1751350268816,-72914.4098951,0.0002198,3]
[368761273,1751350268825,-171.676387,0.0002198,7]
[368761274,1751350268835,-151.0,0.0002198,7]
[368761275,1751350268844,-170.96235,0.0002198,7]
[368761276,1751350268853,-151.0,0.0002198,7]
[368761277,1751350268863,-151.0,0.0002198,7]
[368761278,1751350268873,-151.0,0.0002198,7]
[368761279,1751350268882,-168.296773,0.0002198,7]
[368761280,1751350268893,-151.0,0.0002198,7]
[368761281,1751350268902,-165.031232,0.0002198,7]
[368761282,1751350268911,-165.031232,0.0002198,7]
[368761283,1751350268921,-151.0,0.0002198,7]
[368761284,1751350268931,-151.0,0.0002198,7]
[368761285,1751350268942,-151.0,0.0002198,7]
[368761286,1751350268952,-151.0,0.0002198,7]
[368761287,1751350268962,-151.0,0.0002198,7]
[368761288,1751350268975,-489.100513,0.0002198,7]
[368761289,1751350268985,-151.0,0.0002198,7]
[368761290,1751350268995,-161.6972,0.0002198,7]
[368761291,1751350269005,-161.6972,0.0002198,7]
[368761292,1751350269015,-160.0,0.0002198,3]
[368761293,1751350269024,-151.0,0.0002198,7]
[368761294,1751350269034,-151.0,0.0002198,7]
[368761295,1751350269043,-558.790274,0.0002198,7]
[368761296,1751350269053,-558.790274,0.0002198,7]
[368761297,1751350269063,-160.0,0.0002198,3]
[368761298,1751350269072,-151.0,0.0002198,7]
[368761299,1751350269083,-12571.40790328,0.0002198,3]
[368761300,1751350269092,-151.0,0.0002198,7]
[368761301,1751350269102,-213.87551669,0.0002198,3]
[368761302,1751350269112,-847.53272281,0.0002198,3]
[368761303,1751350269123,-65547.67269377,0.00021999,2]
[368761304,1751350269132,-151.0,0.00021999,7]
[368761305,1751350269143,-151.552383,0.00021999,2]
[368761306,1751350269152,-151.552383,0.00021999,2]
[368761307,1751350269162,-151.0,0.00021999,7]
[368761308,1751350269171,-151.0,0.00021999,7]
[368761309,1751350269181,-151.0,0.00021999,7]
[368761310,1751350269190,-151.0,0.00021999,7]
[368761311,1751350269200,-162.922895,0.00021999,7]
[368761312,1751350269209,-162.922895,0.00021999,7]
[368761313,1751350269219,-4422.45433397,0.00022,7]
[368761314,1751350269228,-1142.74774546,0.00022,2]
[368761315,1751350269238,-152.0,0.00022,2]
[368761316,1751350269247,-3521.22584715,0.00022,7]
[368761317,1751350269257,-6688.36886974,0.00022,7]
[368761318,1751350315955,-181.0,0.0002494,120]
[368761319,1751350315988,-93.0,0.0002499,120]
[368761320,1751350316067,-174.78,0.0002499,120]
[368761321,1751350320996,-3000000.0,0.00024976,20]
[368761322,1751350336139,-2000.0,0.00024976,30]
[368761323,1751350336165,-2000.0,0.00024976,30]
[368761324,1751350336189,-2000.0,0.00024976,30]
[368761325,1751350336212,-2000.0,0.00024976,30]
[368761326,1751350336237,-2000.0,0.00024976,30]
[368761327,1751350336261,-687.72851243,0.00024976,30]
[368761328,1751350336288,-509.72415833,0.00024976,30]